Workbook

Sheet CF_D
B2: Konzern-Kapitalflussrechnung (IFRS)
B3: vom 1. Oktober 2015 bis 31. März 2016
C4: 2015/16 | D4: 2014/15
C5: Tsd. € | D5: Tsd. €
B6: Cashflow aus der gewöhnlichen Geschäftstätigkeit:
B7: Konzernergebnis | C7: =47995+1331 -> 49326 | D7: 32400
B8: Anpassung zur Überleitung des Konzernergebnisses zur Nettoveränderung der liquiden Mittel aus laufender Geschäftstätigkeit:
B9: Ertragsteueraufwand | C9: 22203 | D9: 15024
B10: Zinserträge / Zinsaufwendungen | C10: 1447 | D10: 736
B11: Ergebnis aus At-Equity bewerteten Finanzanlagen | C11: 820 | D11: 189
B12: Abschreibungen | C12: 9382 | D12: 9422
B13: Gewinne/Verluste aus Abgang/Abwertung von Anlagevermögen | C13: 230 | D13: 42
B14: Erhaltene Zinsen | C14: 361 | D14: 225
B15: Gezahlte Zinsen | C15: -802 | D15: -657
B16: Erstattete Ertragsteuern | C16: 251 | D16: 3239
B17: Gezahlte Ertragsteuern | C17: =-19591-191 -> -19782 | D17: -20751
B18: Sonstige wesentliche zahlungsunwirksame Aufwendungen und Erträge | C18: 0 | D18: 69
B19: Veränderungen des Working Capitals:
B20: Forderungen aus Lieferungen und Leistungen | C20: -60 | D20: -38124
B21: Vorräte | C21: =-13375-111 -> -13486 | D21: -18015
B22: Sonstige Vermögenswerte | C22: -1732 | D22: -2791
B23: Verbindlichkeiten aus Lieferungen und Leistungen | C23: =-8871+111 -> -8760 | D23: 5251
B24: Rückstellungen und finanzielle Verbindlichkeiten | C24: =9762+191 -> 9953 | D24: 13916
B25: Sonstige Verbindlichkeiten | C25: -6559 | D25: 3326
B26: Gesamte Anpassungen | C26: =SUM(C9:C25) -> -6534 | D26: =SUM(D9:D25) -> -28899
B27: Netto-Kapitalzufluss/(-abfluss) aus der gewöhnlichen Geschäftstätigkeit | C27: =+C7+C26 -> 42792 | D27: =+D7+D26 -> 3501
B28: Cashflow aus der Investitionstätigkeit:
B29: Investitionen in Sachanlagen | C29: -4278 | D29: -6040
B30: Investitionen in sonstige immaterielle Vermögenswerte | C30: -6055 | D30: -2252
B31: Erlöse aus dem Verkauf von Anlagevermögen | C31: 42 | D31: 24
B32: Erwerb von nach der Equity Methode bilanzierten Beteiligungen und Vermögenswerten | C32: =-3321-810 -> -4131 | D32: -4375
B33: Auszahlungen für Ausleihungen an At -Equity Beteiligungen | C33: 0 | D33: -5680
B34: Auszahlungen für sonstige Ausleihungen | C34: -823 | D34: 0
B35: Einzahlungen aus Festgeldanlagen | C35: 110000 | D35: 0
B36: Erwerb konsolidierter Unternehmen / Geschäftsbetriebe abzgl. erhaltener Finanzmittel (Optronik A.S., Türkei) | C36: 0 | D36: -1067
B37: Netto-Kapitalzufluss/(-abfluss) aus der Investitionstätigkeit | C37: =SUM(C29:C36) -> 94755 | D37: =SUM(D29:D36) -> -19390
B38: Cashflow aus der Finanzierungsstätigkeit:
B39: Aufnahme/(Rückzahlung) der kurzfristigen Kredite | C39: -178 | D39: -837
B40: Aufnahme/(Rückzahlung) der langfristigen Kredite | C40: -244 | D40: -238
B41: (Zunahme)/Abnahme der Forderungen aus Finanzausgleich | C41: -138172 | D41: 35436
B42: Zunahme/(Abnahme) der Verbindlichkeiten aus Finanzausgleich | C42: -3820 | D42: 11531
B43: Zunahme/(Abnahme) der Verbindlichkeiten aus Finanzierungsleasing | C43: -1205 | D43: -1244
B44: Dividendenzahlung an die Aktionäre der Carl Zeiss Meditec AG | C44: 0 | D44: -32524
B45: Netto-Kapitalzufluss/(-abfluss) aus der Finanzierungsstätigkeit | C45: =SUM(C39:C44) -> -143619 | D45: =SUM(D39:D44) -> 12124
B46: Einfluss von Wechselkursänderungen auf Zahlungsmittel und Zahlungsmitteläquivalente | C46: =-208-1 -> -209 | D46: 910
B47: Zunahme/(Abnahme) der Zahlungsmittel und Zahlungsmitteläquivalente | C47: =+C27+C37+C45+C46 -> -6281 | D47: =+D27+D37+D45+D46 -> -2855
B48: Zahlungsmittel und Zahlungsmitteläquivalente am Beginn des Berichtszeitraumes | C48: 13041 | D48: 10727
B49: Zahlungsmittel und Zahlungsmitteläquivalente am Ende des Berichtszeitraumes | C49: =+C47+C48 -> 6760 | D49: =+D47+D48 -> 7872
B50: Der nachfolgende Konzernanhang ist integraler Bestandteil des ungeprüften Konzernabschlusses.

Sheet Bilanzanalyse (hidden)
A1: Abw. Dec./ Sep | C1: Begründung | D1: davon erklärt | E1: Differenz
A2: =#REF! ->  | B2: Geschäfts- oder Firmenwert | C2: Zugang IMEX 7,432 Mio. | D2: =7432 -> 7432 | E2: =A2-D2 -> 
A3: =#REF! ->  | B3: Immaterielle Vermögenswerte | C3: Zugang IMEX 5,551 Mio.
A4: =#REF! ->  | B4: Sachanlagen | C4: Zugang CZM AG 4,0 Mio. vor Afa (hauptsächlich Olymp ca. 3,2 Mio.); Übernahme Mietgeräte bei CZM VG aus Umlaufvermögen (+1,2 Mio.)
A5: =#REF! ->  | B5: Forderungen aus Lieferungen und Leistungen | C5: hierin enthalten 2,9 Mio. Alcon-Lizenzen, Cash-Zahlung erfolgt erst im Januar
A6: =#REF! ->  | B6: Forderungen gegen nahe stehende Unternehmen | C6: v.a. Umsatzanstieg Q1 CZM AG (Umsatz je Quartal: GJ 10/11 --> 113 Mio., Q1 11/12 --> 141 Mio.)
A7: =#REF! ->  | B7: Sonstige kurzfristige finanzielle Vermögenswerte | C7: Anstieg aus CZM Inc. aufgrund der Umgliederung der Kreditkartenforderungen von kurzf. Nicht-finanz. Vw in kurzf. Finanz. Vermögenswerte (+1,3 Mio.). Anstieg CZM AG (+0,3 Mio.) für Zinsabgrenzungen (COBA + HVB) | D7: =1300+300 -> 1600 | E7: =A7-D7 -> 
A8: =#REF! ->  | B8: Sonstige kurzfristige nicht-finanzielle Vermögenswerte | C8: Kompensation des Umgliederungseffektes USA durch CZM F (+0,6 Mio., u.a. UST, ARAP), CZM AG (+0,4 Mio.)
A9: 1207 | B9: Andere langfristige Rückstellungen | C9: IMEX earn out Anteil +2,218 Mio.; Kompensation durch CZM AG (-915 TEUR ATZ, -142 TEUR Verbrauch ERA RST und sonstiges) | D9: =(2.218-0.915-0.142)*1000 -> 1161 | E9: 46
A10: =#REF! ->  | B10: Kurzfristige Rückstellungen | C10: IMEX earn out Anteil +2,149 Mio., Abgrenzung KöSteuer +1,5 Mio. (CZM AG), RST für Gewährleistungen pauschal +0,55 Mio. (CZM AG), Konzernrückstellung Q1 für Projekttehmen +0,85 Mio., Auflösung RST für Bonuszahlung im Dezember + RST-Bildung für geschätzte Logistikosten (CZM Japan), Zuführung RST CZM Inc. für Ferien, Warenrückgabe und Gewährleistung | D10: =(2.149+1.5+0.55+0.85)*1000 -> 5049
A11: =#REF! ->  | B11: Kurzfristige abgegrenzte Verbindlichkeiten | C11: Auszahlung Renumeration für FY 10/11 CZM VG -0,8 Mio. (hier auch Reduzierung RST für ausstehende Rechnung enthalten) und USA -3,1 Mio. (u.a. MBO-Bonus, Super-Bonus); z.T. Kompensation/ Anstieg durch unterjährige Rechnungsabgrenzungen + Risiken CZM AG +1,36 Mio. (davon 0,6 Mio. Konzern-RST bzw. 0,3 Mio. CZM-Verbundene, die im Konzern wieder eliminiert werden); CZM SAS + FCI -04 Mio. Rückgang Personalverbindlichkeiten aufgrund erfolgter Bonuszahlung im Dez 11 | D11: =(-0.8-3.1+1.36-0.3-0.4)*1000 -> -3240
A12: =#REF! ->  | B12: Kurzfristige finanzielle Verbindlichkeiten | C12: Devisentermingeschäfte CZM AG +3,3 Mio. EUR, Reduzierung ausstehende Checks USA aufgrund von Lieferantenzahlungen -0,6 Mio. | D12: =(3.3-0.6)*1000 -> 2700
A13: =#REF! ->  | B13: Verbindlichkeiten aus Lieferungen und Leistungen | C13: CZM AG: Umstellung Lieferantenzahlungen auf tägliche Zahlungen nach Fälligkeit ab Q1 2012 (-3,9 Mio.)
A14: =#REF! ->  | B14: Sonstige kurzfristige nicht-finanzielle Verbindlichkeiten | C14: CZM AG: Lohnsteuerverbindlichkeiten +2,0 Mio. (Prämienzahlung 31.12.) , Lizenzen Alcon +2,2 Mio. Erhaltene Anzahlungen -1,0 Mio., CZM VG: Erhöhung "erhaltene Anzahlungen" und Lohnsteuerverbindlichkeiten zum 31.12. (+0,6 Mio.) CZM Inc: Service-RST (+0,5 Mio.), abgegrenzter Service-Ertrag (+0,4 Mio.) CZM Japan: Bonuszahlung Dez 11 (+0,4 Mio.), Kundenvorauszahlungen OPMI Lumera + Vario (+0,5 Mio.), U-Anteil soziale Sicherheit (+0,2 Mio.) CZM Spanien: abgegrenter Ertrag (+0,3 Mio.) | D14: =(2+2.2-1+0.6+0.5+0.4+0.4+0.5+0.2+0.3)*1000 -> 6100
